Cogmind - Beta 9.6 @@@ ROGUE MODE // 2020.08.31 @ 22:52:23 Player: Judas Result: Destroyed by D-53 Grenadier with Mini Grenade Launcher Performance ------------- Evolutions (0) 0 Regions Visited (2) 400 Robots Destroyed (13) 65 Value Destroyed (236) 236 Prototype IDs (0) 0 Alien Tech Used (0) 0 Bonus (0) 0 TOTAL SCORE: 701 Bonus ------- None Cogmind --------- Core Integrity 0/250 Matter 300/300 Energy 100/100 System Corruption 0% Temperature Cool (0) Movement Walking (120) Location -10/Mines Parts ------- > --- POWER (1) -------- (None) > --- PROPULSION (2) --- Aluminum Leg > --- UTILITY (2) ------ Small Storage Unit Improved Signal Interpreter > --- WEAPON (2) ------- (None) > --- INVENTORY (6) ---- Light Ion Engine Light Treads Light Treads Aluminum Leg Aluminum Leg Hardened Light Armor Plating Peak State ------------ > --- POWER ------------ Light Nuclear Core > --- PROPULSION ------- Aluminum Leg Aluminum Leg > --- UTILITY ---------- Small Storage Unit Improved Signal Interpreter > --- WEAPON ----------- Small Laser Assault Rifle > --- INVENTORY -------- Light Ion Engine Light Treads Light Treads Aluminum Leg Hardened Light Armor Plating [Rating: 10] Favorites ----------- Power Light Nuclear Core Engine Light Ion Engine Power Core Light Nuclear Core Propulsion Aluminum Leg Leg Aluminum Leg Utility Small Storage Unit Storage Small Storage Unit Processor Improved Signal Interpreter Weapon Assault Rifle Energy Gun Small Laser Ballistic Gun Assault Rifle Build | -11 -10 -10 ------- Run | Scr Mat Min Slots Evolved . | . . . Power . | . . . Propulsion . | . . . Utility . | . . . Weapon . | . . . Parts Attached 8 | 1 4 3 Power 2 | . 1 1 Engine 1 | . 1 . Core 1 | . . 1 Reactor . | . . . Propulsion 3 | . 1 2 Treads . | . . . Leg 3 | . 1 2 Wheel . | . . . Hover . | . . . Flight . | . . . Utility 1 | . 1 . Device . | . . . Storage . | . . . Processor 1 | . 1 . Hackware . | . . . Protection . | . . . Artifact . | . . . Weapon 2 | 1 1 . Energy Gun 1 | . 1 . Energy Cannon . | . . . Ballistic Gun 1 | 1 . . Ballistic Cannon . | . . . Launcher . | . . . Special Weapon . | . . . Impact Weapon . | . . . Slashing Weapon . | . . . Piercing Weapon . | . . . Special Melee Weapon . | . . . Unidentified Prototypes . | . . . Parts Lost 6 | . 2 4 Power 2 | . 1 1 Propulsion 1 | . . 1 Utility . | . . . Weapon 3 | . 1 2 Highest Loss Streak 4 | . 1 4 Average Slot Usage (%) 98 | . 99 98 Engine 5 | . 14 3 Core 7 | . . 9 Leg 27 | . 28 27 Storage 14 | . 14 14 Processor 13 | . 13 14 Energy Gun 13 | . 14 13 Ballistic Gun 13 | . 14 13 Naked Turns . | . . . Heaviest Build 12 | 11 12 12 Greatest Support 20 | 20 20 20 Greatest Overweight (x) . | . . . Average Overweight (x) . | . . . Largest Inventory Capacity 6 | 6 6 6 Average Capacity 6 | 6 6 6 Most Carried 6 | 6 6 6 Average Carried 5 | 6 4 5 Final Capacity 6 | 6 6 6 Final Carried 6 | 6 5 6 Class Distribution -------------------- 100% | Mutant Dominant Class ---------------- Mutant | -10/Materials Mutant | -10/Mines Resources | -11 -10 -10 ----------- Run | Scr Mat Min Matter Collected 399 | 231 54 114 Remotely . | . . . Salvage Created 364 | 58 181 125 Parts 14 | . 9 5 Haulers Intercepted . | . . . Recyclers Shooed . | . . . Parts Field Recycled . | . . . Retrieved Matter . | . . . Parts Self-Destructed . | . . . Prevented . | . . . Kills | -11 -10 -10 ------- Run | Scr Mat Min Combat Hostiles Destroyed 10 | . 5 5 Guns 7 | . 2 5 AOE 3 | . 3 . Classes Destroyed 6 | 1 4 1 Builder 1 | . 1 . Recycler 1 | 1 . . Operator 1 | . 1 . Swarmer 3 | . 3 . Grunt 4 | . 2 2 Assembled 3 | . . 3 Best Kill Streak 5 | 1 5 2 Combat Bots Only 3 | . 3 2 Max Kills in Single Turn 3 | 1 3 1 Gunslinging . | . . . Exploded 2 | . 2 . Melee . | . . . Uniques/NPCs Destroyed . | . . . Combat | -11 -10 -10 -------- Run | Scr Mat Min Damage Taken 937 | 12 348 577 Core 289 | . 58 231 Absorbed by Shields . | . . . Core Remaining (%) 100 | 100 . . Volleys Fired 52 | 12 19 21 Largest 2 | 2 2 2 Hottest 80 | 80 60 60 Shots Fired 104 | 24 38 42 Gun 104 | 24 38 42 Cannon . | . . . Launcher . | . . . Special . | . . . Kinetic 47 | 7 19 21 Thermal 32 | 5 6 21 Explosive . | . . . Electromagnetic 25 | 12 13 . Robot Hit Streak 7 | 3 4 7 Robot Miss Streak 4 | 2 4 3 Penetration Max . | . . . Secondary Targets . | . . . Shots Hit Robots 56 | 13 19 24 Core Hits 24 | 1 10 13 Critical Hits . | . . . Critical Kills . | . . . Critical Parts Destroyed . | . . . Melee Attacks . | . . . Impact . | . . . Slashing . | . . . Piercing . | . . . Sneak Attacks . | . . . Combat Hostiles . | . . . Follow-up Attacks . | . . . Damage Inflicted 851 | 191 383 277 Guns 668 | 149 248 271 Cannons . | . . . Explosions 177 | 42 135 . Melee . | . . . Ramming 6 | . . 6 Kinetic 252 | 56 90 106 Thermal 368 | 64 139 165 Explosive . | . . . Electromagnetic 225 | 71 154 . Impact . | . . . Slashing . | . . . Piercing . | . . . Highest Corruption . | . . . Average Corruption . | . . . Corruption Purged . | . . . Overload Shots . | . . . Overflow Damage 14 | 12 2 . Projectiles . | . . . Explosions 14 | 12 2 . Melee . | . . . Knockbacks . | . . . Impact . | . . . Kinetic . | . . . Secondary . | . . . Self-Inflicted Damage 86 | 12 72 2 Shots 5 | 1 4 . Rammed 3 | . . 3 Targets Rammed 3 | . . 3 Kicked . | . . . Crushed . | . . . Highest Temperature 90 | 90 18 36 Average Temperature 17 | 35 10 11 Received Heat Transfer 72 | . 36 36 Siege Activations . | . . . Robots Corrupted . | . . . Combat Hostiles . | . . . Parts Fried 1 | . 1 . Impact Corruptions . | . . . Robots Melted . | . . . Combat Hostiles . | . . . Parts Melted . | . . . Heat Transferred 675 | 100 200 375 Parts Sabotaged . | . . . Parts Stolen . | . . . Parts Stripped . | . . . Power Chain Reactions 3 | 1 2 . Missiles Intercepted . | . . . Alert | -11 -10 -10 ------- Run | Scr Mat Min Peak Influence 213 | 5 213 111 Average Influence 63 | 1 103 59 Maximum Alert Level 1 | . 1 . Low Security (%) 98 | 100 92 100 Level 1 1 | . 7 . Level 2 . | . . . Level 3 . | . . . Level 4 . | . . . Level 5 . | . . . High Security . | . . . Max Security . | . . . Squads Dispatched 1 | . 1 . Investigation . | . . . Extermination . | . . . Reinforcement 1 | . 1 . Assault . | . . . Garrison . | . . . Intercept . | . . . Construction Impeded . | . . . Haulers Reinforced . | . . . Stealth | -11 -10 -10 --------- Run | Scr Mat Min Distress Signals 3 | . 2 1 Communications Jammed . | . . . Distress Signals . | . . . Times Spotted 23 | . 13 10 Peak Tracking Total 6 | . 6 4 Tactical Retreats 2 | . . 2 Traps | -11 -10 -10 ------- Run | Scr Mat Min Traps Triggered . | . . . Indirectly . | . . . Trap Hack Attempts . | . . . Triggered . | . . . Disarmed . | . . . Reprogrammed . | . . . Reused . | . . . Traps Extracted . | . . . Installed . | . . . Triggered . | . . . Machines | -11 -10 -10 ---------- Run | Scr Mat Min Machines Disabled 3 | . 3 . Max in Single Turn 2 | . 2 . Machines Sabotaged . | . . . Garrisons Compromised . | . . . Overloaded Fab Kills . | . . . Fab Network Shutdowns . | . . . Hacking | -11 -10 -10 --------- Run | Scr Mat Min Machines Accessed 2 | . 2 . Terminals 2 | . 2 . Fabricators . | . . . Repair Stations . | . . . Recycling Units . | . . . Scanalyzers . | . . . Garrison Access . | . . . Total Hacks 6 | . 6 . Successful 4 | . 4 . Failed 2 | . 2 . Catastrophic . | . . . Database Lockouts . | . . . Manual 6 | . 6 . Terminals 6 | . 6 . Fabricators . | . . . Repair Stations . | . . . Recycling Units . | . . . Scanalyzers . | . . . Garrison Access . | . . . Terminal Hacks . | . . . Fabricator Hacks . | . . . Repair Station Hacks . | . . . Recycling Unit Hacks . | . . . Scanalyzer . | . . . Garrison Access Hacks . | . . . Unauthorized Hacks 4 | . 4 . Terminals 4 | . 4 . Assimilate 2 | . 2 . Botnet 2 | . 2 . Fabricators . | . . . Repair Stations . | . . . Recycling Units . | . . . Scanalyzers . | . . . Garrison Access . | . . . Data Cores Recovered . | . . . Used . | . . . Hacking Detections 1 | . 1 . Full Trace Events 1 | . 1 . Feedback Events . | . . . Feedback Blocked . | . . . Robot Schematics Acquired . | . . . Robots Built . | . . . Matter . | . . . Time . | . . . Total Robot Build Rating . | . . . Part Schematics Acquired . | . . . Parts Built . | . . . Matter . | . . . Time . | . . . Total Part Build Rating . | . . . Parts Repaired . | . . . Time . | . . . Parts Recycled . | . . . Recycled Matter . | . . . Retrieved Matter . | . . . Retrieved Components . | . . . Parts Scanalyzed . | . . . Part Schematics Acquired . | . . . Parts Damaged . | . . . Bothacking | -11 -10 -10 ------------ Run | Scr Mat Min Used RIF Installer . | . . . Robots Hacked . | . . . Non-combat . | . . . Combat . | . . . Robot Hacks Applied . | . . . Relay Couplers Released . | . . . Robots Rewired . | . . . Allies Hacked . | . . . Hacks Repelled . | . . . Allies | -11 -10 -10 -------- Run | Scr Mat Min Total Allies 2 | . . 2 Largest Group 2 | . . 2 Highest-Rated Group 41 | . . 41 Highest-Rated Ally 31 | . . 31 Total Orders . | . . . Ally Attacks 8 | . . 8 Total Damage 127 | . . 127 Kills 2 | . . 2 Allies Corrupted . | . . . Allies Melted . | . . . Intel | -11 -10 -10 ------- Run | Scr Mat Min Robot Analysis Total . | . . . Derelict Logs Recovered 1 | . . 1 Drone Launches . | . . . Drone Recoveries . | . . . Exploration | -11 -10 -10 ------------- Run | Scr Mat Min Turns Passed 802 | 62 165 575 Spaces Moved 498 | 21 83 394 Core . | . . . Treads . | . . . Legs 498 | 21 83 394 Wheels . | . . . Hover . | . . . Flight . | . . . Fastest Speed 120 | 120 120 120 Average Speed 120 | 120 120 120 Slowest Speed 120 | 120 120 120 Overloaded Moves . | . . . Propulsion Burnouts . | . . . Robots Hopped . | . . . Cave-ins Triggered . | . . . Exploration Rate (%) 34 | 3 30 71 Regions Visited 2 Branch Regions 1 Pre-discovered Areas . | . . . Known Exits Taken 1 | . 1 . Unknown Exits Taken 1 | 1 . . Scrap Searched . | . . . Spaces Dug . | . . . Terrain Destroyed 6 | 3 3 . Melee . | . . . Projectile . | . . . AOE 6 | 3 3 . Actions | -11 -10 -10 --------- Run | Scr Mat Min Total 596 | 33 110 453 Wait 32 | . 2 30 Move 496 | 20 82 394 Hop . | . . . Pick Up 1 | . 1 . Fast Attach 3 | . 2 1 Attach 1 | . 1 . Detach . | . . . Swap 4 | 1 1 2 Drop 4 | . 2 2 Fire 52 | 12 19 21 Melee . | . . . Ram . | . . . Kick 3 | . . 3 Crush . | . . . Escape Stasis . | . . . Rewire . | . . . Trap . | . . . Miscellaneous . | . . . Route ------- -11/Scrapyard -10/Materials -10/Mines History --------- Turn | Location | Event 18 | -11/Scrapyard | Discovered new exit (range 3) 63 | -11/Scrapyard | Entered Materials 196 | -10/Materials | Discovered new exit (range 13) 224 | -10/Materials | Identified exit to Mines 228 | -10/Materials | Entered Mines 248 | -10/Mines | Met a Derelict bent on vengeance 284 | -10/Mines | Assembled infested the area 305 | -10/Mines | Build established: Mutant 430 | -10/Mines | Core integrity fell below 50% 681 | -10/Mines | Learned Materials emergency access door positions 795 | -10/Mines | Core integrity fell below 20% 803 | -10/Mines | Destroyed by D-53 Grenadier with Mini Grenade Launcher Last Messages --------------- 00602_ U-05 Engineer builds a Wall. 00603_ U-05 Engineer lays Concrete. 00630_ Acquired 1 matter. 00634_ Acquired 8 matter. 00672_ T-07 Excavator is excavating. 00681_ Acquired derelict log, extracted data. Data stored: Materials emergency access points. 00685_ T-07 Excavator is excavating. 00740_ Acquired 3 matter. 00776_ The unstable cave ceiling collapses. 00779_ Lgt. Nuclear Core destroyed. 00780_ The unstable cave ceiling collapses. 00790_ Sml. Laser destroyed. 00790_ Aluminum Leg destroyed. 00790_ Assault Rifle destroyed. 00794_ Slammed into D-53 Grenadier. 00800_ The unstable cave ceiling collapses. 00800_ Slammed into D-53 Grenadier. 00802_ The unstable cave ceiling collapses. 00802_ Slammed into D-53 Grenadier. Map ----- +----------------------------------------------------+ | ????????????????# ################?????????????? | | ????????????????# #?????????????? | | ????????????????# #?????####????? | | ?????????????????############### #????## ##???? | | ???????????????????????????????# #????# ##### | | ???????????????????????????????# #????# | | ???????????????????????????????# ###### ###### | | ???????????????????????????????# #????? | | ???????????????????????????????# #????? | | ???????????????????????????????####### #????? | | ?????????????????????????????????????## ##????? | | ??????????????????????????????????????## ##?????? | | ???????????????????????????????????????# #??????? | | ??????????????????????????????????###### #??????? | | ??????????????????????????????????# #??????? | | ??????????????????????????????????# ######??????? | | ??????????????????????????????????# #???????????? | | ??????????????????????????????????# #???####????? | | ??????????????????????????????????# #???# ????? | | ??????????????????????????######### #???# ??? | | ???????????????????????### # #???# #???? | | ????????????????????#### # ## #?### #????? | | ????????????????????# #%#?? ###??? | | ????????????????????# # ## #??? #??? | | ????????????????????# % # ##### ##?? | | ????????????????????# @d # #?? | | ????????????????????# ####### ### | | ????????????????????### # ## ?# | | ??????????????????????# # # # ### # # | | ?????????????????????## #######???### " # | | ??????????????######## #????????# %## | | ??????????????# #????????# # % | | ??????????????# $ #????????## | | ??????????????# ### ## #?????????# ### | | ??????????????????# ####### ????????# # ## ?? | | ??????????????????# #?????? ????????## # ## ?##? | | ??????????????????# #??????# ????????#### ??#???# | | ??????????????????# #??????? ???????????% ??????# | | ??????????????????# #?????????????????? ??????# | | ??????????????????# #????????????????? ??????# | | ??????????????????# #???????????????? ??????# | | ??????????????????# #??????????????? ? ?????## | | ??????????????????# #??????????????#? ##????## | | ??????????????????# #???????????????? ?#??????# | | ??????????????????# #?????????????????????????# | | ??????????????????# ###???????????????????????## | | ??????????????????# #???####?????????????????## | | ??????????????????### #??# ###????????????????? | | ????????####????????# ### ##???????????????? | | ?????? ##### ## """ #???????????????? | +----------------------------------------------------+ Best States ------------- Heat Dissipation 25 Energy Generation 14 Energy Capacity 250 Matter Stores 300 Matter Capacity 300 Sight Range 16 Terrain Scan Density 10 Evasion (%) 40 Item Schematics ----------------- None Robot Schematics ------------------ None Fabricated ------------ Nothing Alien Tech Used ----------------- None Achievements -------------- None Challenges ------------ None Game ------ Seed EtherialRemoteComputer Manual? 0 Play Time 00:11:56 Cumulative 88.3 hours Start 2020.08.31 @ 22:44:19 End 2020.08.31 @ 22:52:23 Sessions 1 Manual Loads 0 Difficulty Rogue Special Mode None Game No. 146 Rogue 141 Adventurer 0 Explorer 5 Win Type - Total 0 Types 0/0/0/0/0/0/0 Lore% 38 Gallery% 55 Achievement% 42 Wizard Run 0 Options --------- ASCII 0 Keyboard 0 Movement Mouse Keybinds 0 Fullscreen 2 Font 18/SmallcapsGlow Map View 76x50 Tactical HUD 1 Map Filters NONE Filters NONE Steam 1 RUN: 2178776d-0f63-414a-b2b9-a1cc84988056